Workbook

Sheet Bajet Bulanan
B2: NAMA SYARIKAT
B3: BAJET BULANAN | L3: 2011-03-01
B5: JUMLAH BAJET | C5: ANGGARAN | D5: SEBENAR | E5: PERBEZAAN | H5: PENDAPATAN | I5: ANGGARAN | J5: SEBENAR | K5: 5 Amaun Tertinggi | L5: PERBEZAAN
B6: Pendapatan | C6: =IncomeTable[[#Totals],[ANGGARAN]] -> 63,300.00 | D6: =IncomeTable[[#Totals],[SEBENAR]] -> 57,450.00 | E6: =TotalsTable[[#This Row],[SEBENAR]]-TotalsTable[[#This Row],[ANGGARAN]] -> (5,850.00) | H6: Jualan bersih | I6: 60,000.00 | J6: 54,000.00 | K6: =IncomeTable[[#This Row],[SEBENAR]]+(10^-6)*ROW(IncomeTable[[#This Row],[SEBENAR]]) -> 54,000.00 | L6: =IncomeTable[[#This Row],[SEBENAR]]-IncomeTable[[#This Row],[ANGGARAN]] -> (6,000.00)
B7: Perbelanjaan | C7: =OperatingExpensesTable[[#Totals],[ANGGARAN]]+PersonnelExpensesTable[[#Totals],[ANGGARAN]] -> 54,500.00 | D7: =OperatingExpensesTable[[#Totals],[SEBENAR]]+PersonnelExpensesTable[[#Totals],[SEBENAR]] -> 49,630.00 | E7: =TotalsTable[[#This Row],[ANGGARAN]]-TotalsTable[[#This Row],[SEBENAR]] -> 4,870.00 | H7: Pendapatan faedah | I7: 3,000.00 | J7: 3,000.00 | K7: =IncomeTable[[#This Row],[SEBENAR]]+(10^-6)*ROW(IncomeTable[[#This Row],[SEBENAR]]) -> 3,000.00 | L7: =IncomeTable[[#This Row],[SEBENAR]]-IncomeTable[[#This Row],[ANGGARAN]] -> 0.00
B8: Baki (Pendapatan tolak Perbelanjaan) | C8: =C6-C7 -> 8,800.00 | D8: =D6-D7 -> 7,820.00 | E8: =TotalsTable[[#Totals],[SEBENAR]]-TotalsTable[[#Totals],[ANGGARAN]] -> (980.00) | H8: Jualan aset (untung/rugi) | I8: 300.00 | J8: 450.00 | K8: =IncomeTable[[#This Row],[SEBENAR]]+(10^-6)*ROW(IncomeTable[[#This Row],[SEBENAR]]) -> 450.00 | L8: =IncomeTable[[#This Row],[SEBENAR]]-IncomeTable[[#This Row],[ANGGARAN]] -> 150.00
H9: Jumlah | I9: =SUBTOTAL(109,IncomeTable[ANGGARAN]) -> 63,300.00 | J9: =SUBTOTAL(109,IncomeTable[SEBENAR]) -> 57,450.00 | L9: =SUBTOTAL(109,IncomeTable[PERBEZAAN]) -> (5,850.00)
H11: PERBELANJAAN KAKITANGAN | I11: ANGGARAN | J11: SEBENAR | K11: 5 Amaun Tertinggi | L11: PERBEZAAN
H12: Gaji | I12: 9,500.00 | J12: 9,600.00 | K12: =PersonnelExpensesTable[[#This Row],[SEBENAR]]+(10^-6)*ROW(PersonnelExpensesTable[[#This Row],[SEBENAR]]) -> 9,600.00 | L12: =PersonnelExpensesTable[[#This Row],[ANGGARAN]]-PersonnelExpensesTable[[#This Row],[SEBENAR]] -> (100.00)
H13: Manfaat pekerja | I13: 4,000.00 | K13: =PersonnelExpensesTable[[#This Row],[SEBENAR]]+(10^-6)*ROW(PersonnelExpensesTable[[#This Row],[SEBENAR]]) -> 0.00 | L13: =PersonnelExpensesTable[[#This Row],[ANGGARAN]]-PersonnelExpensesTable[[#This Row],[SEBENAR]] -> 4,000.00
H14: Komisen | I14: 5,000.00 | J14: 4,500.00 | K14: =PersonnelExpensesTable[[#This Row],[SEBENAR]]+(10^-6)*ROW(PersonnelExpensesTable[[#This Row],[SEBENAR]]) -> 4,500.00 | L14: =PersonnelExpensesTable[[#This Row],[ANGGARAN]]-PersonnelExpensesTable[[#This Row],[SEBENAR]] -> 500.00
H15: Jumlah Kakitangan | I15: =SUBTOTAL(109,PersonnelExpensesTable[ANGGARAN]) -> 18,500.00 | J15: =SUBTOTAL(109,PersonnelExpensesTable[SEBENAR]) -> 14,100.00 | L15: =SUBTOTAL(109,PersonnelExpensesTable[PERBEZAAN]) -> 4,400.00
H17: PERBELANJAAN PENGENDALIAN | I17: ANGGARAN | J17: SEBENAR | K17: 5 Amaun Tertinggi | L17: PERBEZAAN
H18: Pengiklanan | I18: 3,000.00 | J18: 2,500.00 | K18: =OperatingExpensesTable[[#This Row],[SEBENAR]]+(10^-6)*ROW(OperatingExpensesTable[[#This Row],[SEBENAR]]) -> 2,500.00 | L18: =OperatingExpensesTable[[#This Row],[ANGGARAN]]-OperatingExpensesTable[[#This Row],[SEBENAR]] -> 500.00
H19: Hutang lapuk | I19: 2,000.00 | J19: 2,000.00 | K19: =OperatingExpensesTable[[#This Row],[SEBENAR]]+(10^-6)*ROW(OperatingExpensesTable[[#This Row],[SEBENAR]]) -> 2,000.00 | L19: =OperatingExpensesTable[[#This Row],[ANGGARAN]]-OperatingExpensesTable[[#This Row],[SEBENAR]] -> 0.00
H20: Diskaun tunai | I20: 1,500.00 | J20: 2,175.00 | K20: =OperatingExpensesTable[[#This Row],[SEBENAR]]+(10^-6)*ROW(OperatingExpensesTable[[#This Row],[SEBENAR]]) -> 2,175.00 | L20: =OperatingExpensesTable[[#This Row],[ANGGARAN]]-OperatingExpensesTable[[#This Row],[SEBENAR]] -> (675.00)
H21: Kos penghantaran | I21: 2,000.00 | J21: 1,500.00 | K21: =OperatingExpensesTable[[#This Row],[SEBENAR]]+(10^-6)*ROW(OperatingExpensesTable[[#This Row],[SEBENAR]]) -> 1,500.00 | L21: =OperatingExpensesTable[[#This Row],[ANGGARAN]]-OperatingExpensesTable[[#This Row],[SEBENAR]] -> 500.00
H22: Susut Nilai | I22: 1,000.00 | J22: 1,000.00 | K22: =OperatingExpensesTable[[#This Row],[SEBENAR]]+(10^-6)*ROW(OperatingExpensesTable[[#This Row],[SEBENAR]]) -> 1,000.00 | L22: =OperatingExpensesTable[[#This Row],[ANGGARAN]]-OperatingExpensesTable[[#This Row],[SEBENAR]] -> 0.00
H23: Tamat tempoh dan langganan | I23: 500.00 | J23: 525.00 | K23: =OperatingExpensesTable[[#This Row],[SEBENAR]]+(10^-6)*ROW(OperatingExpensesTable[[#This Row],[SEBENAR]]) -> 525.00 | L23: =OperatingExpensesTable[[#This Row],[ANGGARAN]]-OperatingExpensesTable[[#This Row],[SEBENAR]] -> (25.00)
H24: Insurans | I24: 1,300.00 | J24: 1,275.00 | K24: =OperatingExpensesTable[[#This Row],[SEBENAR]]+(10^-6)*ROW(OperatingExpensesTable[[#This Row],[SEBENAR]]) -> 1,275.00 | L24: =OperatingExpensesTable[[#This Row],[ANGGARAN]]-OperatingExpensesTable[[#This Row],[SEBENAR]] -> 25.00
H25: Faedah | I25: 2,000.00 | J25: 2,200.00 | K25: =OperatingExpensesTable[[#This Row],[SEBENAR]]+(10^-6)*ROW(OperatingExpensesTable[[#This Row],[SEBENAR]]) -> 2,200.00 | L25: =OperatingExpensesTable[[#This Row],[ANGGARAN]]-OperatingExpensesTable[[#This Row],[SEBENAR]] -> (200.00)
H26: Legal dan audit | I26: 1,000.00 | J26: 800.00 | K26: =OperatingExpensesTable[[#This Row],[SEBENAR]]+(10^-6)*ROW(OperatingExpensesTable[[#This Row],[SEBENAR]]) -> 800.00 | L26: =OperatingExpensesTable[[#This Row],[ANGGARAN]]-OperatingExpensesTable[[#This Row],[SEBENAR]] -> 200.00
H27: Penyelenggaraan dan pembaikan | I27: 4,500.00 | J27: 4,600.00 | K27: =OperatingExpensesTable[[#This Row],[SEBENAR]]+(10^-6)*ROW(OperatingExpensesTable[[#This Row],[SEBENAR]]) -> 4,600.00 | L27: =OperatingExpensesTable[[#This Row],[ANGGARAN]]-OperatingExpensesTable[[#This Row],[SEBENAR]] -> (100.00)
H28: Bekalan pejabat | I28: 800.00 | J28: 750.00 | K28: =OperatingExpensesTable[[#This Row],[SEBENAR]]+(10^-6)*ROW(OperatingExpensesTable[[#This Row],[SEBENAR]]) -> 750.00 | L28: =OperatingExpensesTable[[#This Row],[ANGGARAN]]-OperatingExpensesTable[[#This Row],[SEBENAR]] -> 50.00
H29: Bayaran Pos | I29: 400.00 | J29: 350.00 | K29: =OperatingExpensesTable[[#This Row],[SEBENAR]]+(10^-6)*ROW(OperatingExpensesTable[[#This Row],[SEBENAR]]) -> 350.00 | L29: =OperatingExpensesTable[[#This Row],[ANGGARAN]]-OperatingExpensesTable[[#This Row],[SEBENAR]] -> 50.00
H30: Sewa atau gadai janji | I30: 4,100.00 | J30: 4,500.00 | K30: =OperatingExpensesTable[[#This Row],[SEBENAR]]+(10^-6)*ROW(OperatingExpensesTable[[#This Row],[SEBENAR]]) -> 4,500.00 | L30: =OperatingExpensesTable[[#This Row],[ANGGARAN]]-OperatingExpensesTable[[#This Row],[SEBENAR]] -> (400.00)
B31: APAKAH 5 PERBELANJAAN PENGENDALIAN SAYA YANG TERTINGGI? | H31: Perbelanjaan jualan | I31: 350.00 | J31: 400.00 | K31: =OperatingExpensesTable[[#This Row],[SEBENAR]]+(10^-6)*ROW(OperatingExpensesTable[[#This Row],[SEBENAR]]) -> 400.00 | L31: =OperatingExpensesTable[[#This Row],[ANGGARAN]]-OperatingExpensesTable[[#This Row],[SEBENAR]] -> (50.00)
B32: PERBELANJAAN | C32: AMAUN | D32: % PERBELANJAAN | E32: 15% PENGURANGAN | H32: Penghantaran dan storan | I32: 900.00 | J32: 840.00 | K32: =OperatingExpensesTable[[#This Row],[SEBENAR]]+(10^-6)*ROW(OperatingExpensesTable[[#This Row],[SEBENAR]]) -> 840.00 | L32: =OperatingExpensesTable[[#This Row],[ANGGARAN]]-OperatingExpensesTable[[#This Row],[SEBENAR]] -> 60.00
B33: =INDEX(OperatingExpensesTable[],MATCH(Top5Expenses[[#This Row],[AMAUN]],OperatingExpensesTable[5 Amaun Tertinggi],0),1) -> Penyelenggaraan dan pembaikan | C33: =LARGE(OperatingExpensesTable[5 Amaun Tertinggi],1) -> 4,600.00 | D33: =Top5Expenses[[#This Row],[AMAUN]]/$D$7 -> 9.3% | E33: =Top5Expenses[[#This Row],[AMAUN]]*0.15 -> 690.00 | H33: Bekalan | I33: 5,000.00 | J33: 4,500.00 | K33: =OperatingExpensesTable[[#This Row],[SEBENAR]]+(10^-6)*ROW(OperatingExpensesTable[[#This Row],[SEBENAR]]) -> 4,500.00 | L33: =OperatingExpensesTable[[#This Row],[ANGGARAN]]-OperatingExpensesTable[[#This Row],[SEBENAR]] -> 500.00
B34: =INDEX(OperatingExpensesTable[],MATCH(Top5Expenses[[#This Row],[AMAUN]],OperatingExpensesTable[5 Amaun Tertinggi],0),1) -> Bekalan | C34: =LARGE(OperatingExpensesTable[5 Amaun Tertinggi],2) -> 4,500.00 | D34: =Top5Expenses[[#This Row],[AMAUN]]/$D$7 -> 9.1% | E34: =Top5Expenses[[#This Row],[AMAUN]]*0.15 -> 675.00 | H34: Cukai | I34: 3,000.00 | J34: 3,200.00 | K34: =OperatingExpensesTable[[#This Row],[SEBENAR]]+(10^-6)*ROW(OperatingExpensesTable[[#This Row],[SEBENAR]]) -> 3,200.00 | L34: =OperatingExpensesTable[[#This Row],[ANGGARAN]]-OperatingExpensesTable[[#This Row],[SEBENAR]] -> (200.00)
B35: =INDEX(OperatingExpensesTable[],MATCH(Top5Expenses[[#This Row],[AMAUN]],OperatingExpensesTable[5 Amaun Tertinggi],0),1) -> Sewa atau gadai janji | C35: =LARGE(OperatingExpensesTable[5 Amaun Tertinggi],3) -> 4,500.00 | D35: =Top5Expenses[[#This Row],[AMAUN]]/$D$7 -> 9.1% | E35: =Top5Expenses[[#This Row],[AMAUN]]*0.15 -> 675.00 | H35: Telefon | I35: 250.00 | J35: 280.00 | K35: =OperatingExpensesTable[[#This Row],[SEBENAR]]+(10^-6)*ROW(OperatingExpensesTable[[#This Row],[SEBENAR]]) -> 280.00 | L35: =OperatingExpensesTable[[#This Row],[ANGGARAN]]-OperatingExpensesTable[[#This Row],[SEBENAR]] -> (30.00)
B36: =INDEX(OperatingExpensesTable[],MATCH(Top5Expenses[[#This Row],[AMAUN]],OperatingExpensesTable[5 Amaun Tertinggi],0),1) -> Cukai | C36: =LARGE(OperatingExpensesTable[5 Amaun Tertinggi],4) -> 3,200.00 | D36: =Top5Expenses[[#This Row],[AMAUN]]/$D$7 -> 6.4% | E36: =Top5Expenses[[#This Row],[AMAUN]]*0.15 -> 480.00 | H36: Utiliti | I36: 1,400.00 | J36: 1,385.00 | K36: =OperatingExpensesTable[[#This Row],[SEBENAR]]+(10^-6)*ROW(OperatingExpensesTable[[#This Row],[SEBENAR]]) -> 1,385.00 | L36: =OperatingExpensesTable[[#This Row],[ANGGARAN]]-OperatingExpensesTable[[#This Row],[SEBENAR]] -> 15.00
B37: =INDEX(OperatingExpensesTable[],MATCH(Top5Expenses[[#This Row],[AMAUN]],OperatingExpensesTable[5 Amaun Tertinggi],0),1) -> Pengiklanan | C37: =LARGE(OperatingExpensesTable[5 Amaun Tertinggi],5) -> 2,500.00 | D37: =Top5Expenses[[#This Row],[AMAUN]]/$D$7 -> 5.0% | E37: =Top5Expenses[[#This Row],[AMAUN]]*0.15 -> 375.00 | H37: Lain | I37: 1,000.00 | J37: 750.00 | K37: =OperatingExpensesTable[[#This Row],[SEBENAR]]+(10^-6)*ROW(OperatingExpensesTable[[#This Row],[SEBENAR]]) -> 750.00 | L37: =OperatingExpensesTable[[#This Row],[ANGGARAN]]-OperatingExpensesTable[[#This Row],[SEBENAR]] -> 250.00
B38: Jumlah | C38: =SUBTOTAL(109,Top5Expenses[AMAUN]) -> 19,300.00 | D38: =SUBTOTAL(109,Top5Expenses[% PERBELANJAAN]) -> 38.9% | E38: =SUBTOTAL(109,Top5Expenses[15% PENGURANGAN]) -> 2,895.00 | H38: Jumlah Pengendalian | I38: =SUBTOTAL(109,OperatingExpensesTable[ANGGARAN]) -> 36,000.00 | J38: =SUBTOTAL(109,OperatingExpensesTable[SEBENAR]) -> 35,530.00 | L38: =SUBTOTAL(109,OperatingExpensesTable[PERBEZAAN]) -> 470.00
